bitfinex-derivatives/quotes_BTCF0:USTF0_20250814
["timestamp","ask_amount","ask_price","bid_price","bid_amount"]
[1755178360285,0.0648355,118670.0,118660.0,0.3493577]
[1755178360496,0.04629,118670.0,118660.0,0.3493577]
[1755178360683,0.0001,118680.0,118670.0,0.3493506]
[1755178360884,0.0001,118680.0,118670.0,2.19931684]
[1755178361085,0.0001,118680.0,118670.0,1.4293506]
[1755178361285,0.26292,118680.0,118670.0,1.1642306]
[1755178361487,0.26372,118680.0,118670.0,0.0842306]
[1755178361686,0.26282,118670.0,118660.0,1.1640736]
[1755178362087,0.41988,118680.0,118660.0,1.95971094]
[1755178362295,0.7669233,118680.0,118670.0,0.0842304]
[1755178362693,0.3470504,118670.0,118660.0,1.3325447]
[1755178362897,1.11701664,118670.0,118660.0,1.07896]
[1755178363194,0.3470646,118650.0,118640.0,1.6921079]
[1755178363396,0.3470646,118650.0,118640.0,1.6078583]
[1755178363697,0.7078646,118650.0,118640.0,0.1684983]
[1755178363886,0.62362,118650.0,118640.0,0.1684983]
[1755178364091,0.26282,118650.0,118640.0,0.3166183]
[1755178364286,0.3849979,118670.0,118650.0,0.0842454]
[1755178364486,0.1563625,118640.0,118630.0,0.10145797]
[1755178364687,0.1563625,118640.0,118630.0,1.18541797]
[1755178364889,0.21653,118640.0,118630.0,1.75463097]
[1755178365090,0.0842454,118650.0,118640.0,0.3841203]
[1755178365294,0.2286654,118650.0,118640.0,0.3769083]
[1755178365493,0.0842457,118650.0,118640.0,0.4220533]
[1755178365695,0.14442,118650.0,118640.0,0.6172933]
[1755178365892,0.07211,118660.0,118650.0,0.2794857]
[1755178366089,0.21653,118670.0,118660.0,0.0842386]
[1755178366289,0.21653,118670.0,118660.0,0.09740949]
[1755178366492,0.7078515,118670.0,118660.0,1.09897089]
[1755178366691,0.26282,118670.0,118660.0,1.18320869]
[1755178366894,0.26282,118670.0,118660.0,1.73924869]
[1755178367099,0.3340145,118680.0,118670.0,0.0842316]
[1755178367300,1.34534934,118680.0,118670.0,0.01317089]
[1755178367593,1.34461874,118680.0,118670.0,0.09740249]
[1755178367797,0.81529074,118680.0,118670.0,0.09740249]
[1755178368095,0.73106624,118680.0,118670.0,0.09640249]
[1755178368296,0.3219,118680.0,118670.0,0.36152249]
[1755178368496,0.24979,118680.0,118670.0,0.36152249]
[1755178368793,0.05908,118680.0,118670.0,0.72232249]
[1755178368995,0.06008,118680.0,118670.0,1.13228873]
[1755178369191,0.06008,118680.0,118670.0,2.29696873]
[1755178369393,0.06108,118680.0,118670.0,2.97204249]
[1755178369898,0.2055,118680.0,118670.0,1.45712249]
[1755178370092,1.17809094,118680.0,118670.0,1.09569089]
[1755178370398,0.68444661,118680.0,118670.0,1.17972269]
[1755178370593,0.20524661,118680.0,118670.0,1.58764269]
[1755178370901,0.24853661,118680.0,118670.0,0.29164269]
[1755178371099,0.76567131,118680.0,118670.0,1.09401089]
[1755178371495,1.34416555,118680.0,118670.0,0.01217089]
[1755178371697,0.93419931,118680.0,118670.0,1.17884269]
[1755178371996,1.34236555,118680.0,118670.0,1.09561089]
[1755178372199,0.93399931,118680.0,118670.0,1.09561089]
[1755178372397,0.93319931,118680.0,118670.0,1.09561089]
[1755178372600,0.76467131,118680.0,118670.0,1.17884269]
[1755178372796,0.05782661,118680.0,118670.0,1.44396269]
[1755178372999,0.24853661,118680.0,118670.0,1.44396269]
[1755178373606,0.05782661,118680.0,118670.0,1.80476269]
[1755178373907,0.05782661,118680.0,118670.0,1.80376269]
[1755178374197,0.38973131,118680.0,118670.0,1.17784269]
[1755178374397,0.75053131,118680.0,118670.0,1.17784269]
[1755178374599,0.30550661,118680.0,118670.0,1.17884269]
[1755178375000,0.30450661,118680.0,118670.0,1.17884269]
[1755178375208,0.30450661,118680.0,118670.0,1.80967269]
[1755178375209,0.05682661,118680.0,118670.0,1.80967269]
[1755178375400,0.05682661,118680.0,118670.0,1.81067269]
[1755178375795,0.045,118710.0,118700.0,0.0842088]
[1755178376005,0.24768,118710.0,118700.0,1.2430576]
[1755178376306,1.10184964,118710.0,118700.0,1.1587305]
[1755178376494,0.60848,118710.0,118700.0,1.1587305]
[1755178376905,0.60848,118710.0,118700.0,1.3055905]
[1755178377107,0.045,118710.0,118700.0,1.3784605]
[1755178377300,0.045,118710.0,118700.0,1.4179205]
[1755178377494,0.001,118710.0,118700.0,1.4179205]
[1755178377806,0.003,118710.0,118700.0,1.4179205]
[1755178378005,0.003,118710.0,118700.0,1.7795205]
[1755178378207,0.003,118710.0,118700.0,2.18868674]
[1755178378398,0.06738,118730.0,118720.0,0.3433858]
[1755178378601,0.06738,118730.0,118720.0,1.7767058]
[1755178379000,0.06738,118730.0,118720.0,2.18587204]
[1755178379300,0.06738,118730.0,118720.0,1.7767058]
[1755178379509,0.06738,118730.0,118720.0,2.18587204]
[1755178379802,0.06738,118730.0,118720.0,2.54747204]
[1755178380307,0.6433939,118740.0,118730.0,0.0841924]
[1755178380506,0.3326724,118730.0,118720.0,0.7216]
[1755178380711,0.3318724,118730.0,118720.0,1.8746795]
[1755178380911,0.24968,118730.0,118720.0,0.7216]
[1755178381206,0.0842066,118710.0,118700.0,0.01685598]
[1755178381412,1.10265284,118710.0,118700.0,1.07792]
[1755178381610,1.10265284,118710.0,118690.0,1.4178556]
[1755178381611,0.1292207,118690.0,118680.0,0.32083829]
[1755178381905,0.6251207,118690.0,118680.0,1.40047829]
[1755178382305,0.6927007,118690.0,118680.0,1.09652049]
[1755178382708,1.27117894,118690.0,118680.0,0.01688049]
[1755178383010,1.63197894,118690.0,118680.0,1.09568049]
[1755178383204,1.2220127,118690.0,118680.0,1.09568049]
[1755178383412,1.2220127,118690.0,118680.0,0.01688049]
[1755178383599,1.2220127,118690.0,118680.0,1.17942839]
[1755178384003,0.416192,118690.0,118680.0,1.17942839]
[1755178384213,0.1965969,118710.0,118700.0,0.14686]
[1755178384419,0.5573969,118710.0,118700.0,0.2310739]
[1755178384607,0.5573969,118710.0,118700.0,0.3434039]
[1755178384608,0.4058,118710.0,118700.0,0.3434039]
[1755178384908,0.6926869,118710.0,118700.0,1.3075139]
[1755178385309,0.1801,118710.0,118700.0,1.3075139]
[1755178385501,0.5292067,118720.0,118710.0,0.3433974]
[1755178385804,0.1291957,118730.0,118710.0,0.3649481]
[1755178386004,0.50844883,118730.0,118720.0,1.2322703]
[1755178386210,0.50844683,118730.0,118720.0,1.2717303]
[1755178386398,0.50844683,118730.0,118720.0,0.1570703]
[1755178386599,0.06345313,118730.0,118720.0,1.2332708]
[1755178386804,0.01845313,118730.0,118720.0,1.2727308]
[1755178387003,0.2947025,118740.0,118730.0,0.0841937]
[1755178387205,0.0861937,118730.0,118720.0,0.2920583]
[1755178387406,0.14929441,118730.0,118720.0,1.3279583]
[1755178387608,0.64519441,118730.0,118720.0,1.1595608]
[1755178387809,0.62858071,118730.0,118720.0,0.0842008]
[1755178388006,0.02110071,118730.0,118720.0,1.4185108]
[1755178388206,0.02310071,118730.0,118720.0,1.7793108]
[1755178388408,0.02010071,118730.0,118720.0,1.7793108]
[1755178388708,0.28639441,118730.0,118720.0,1.3047408]
[1755178389010,0.28639441,118730.0,118720.0,1.2207]
[1755178389215,0.045,118710.0,118700.0,1.5531111]
[1755178389408,1.01764624,118710.0,118700.0,1.16496]
[1755178389610,1.10185414,118710.0,118700.0,2.322295]
[1755178389807,0.6926879,118710.0,118700.0,2.23808]
[1755178390009,0.3318879,118710.0,118700.0,2.323375]
[1755178390213,0.045,118710.0,118700.0,1.468905]
[1755178390414,0.045,118720.0,118710.0,0.3039379]
[1755178390815,0.045,118720.0,118710.0,0.3423979]
[1755178391316,1.10827743,118720.0,118710.0,1.07224]
[1755178391715,0.084208,118710.0,118700.0,0.001]
[1755178391927,1.10185424,118710.0,118700.0,1.07048]
[1755178392126,0.1292222,118690.0,118680.0,0.10110929]
[1755178392328,0.5409,118690.0,118680.0,1.17118929]
[1755178392620,0.6251217,118690.0,118680.0,1.17118929]
[1755178392827,0.6251217,118690.0,118680.0,1.23382049]
[1755178393024,0.6927017,118690.0,118680.0,0.14686]
[1755178393325,0.1292288,118680.0,118670.0,0.7489962]
[1755178393516,0.1292288,118680.0,118670.0,1.8176762]
[1755178393713,0.1292288,118680.0,118660.0,1.32879751]
[1755178393714,0.2643359,118670.0,118660.0,1.32879751]
[1755178393922,1.10864867,118670.0,118660.0,1.08469751]
[1755178394124,0.0842501,118650.0,118630.0,0.07287]
[1755178394320,0.5409,118640.0,118630.0,0.24429543]
[1755178394527,0.60848,118640.0,118630.0,1.22695113]
[1755178394719,1.10190344,118640.0,118630.0,1.08009113]
[1755178395027,0.0842785,118610.0,118600.0,0.07767031]
[1755178395217,0.3608,118610.0,118600.0,1.38806428]
[1755178395417,0.4058,118610.0,118600.0,1.36422635]
[1755178395627,0.60848,118610.0,118600.0,1.22878195]
[1755178395819,0.60848,118610.0,118600.0,1.14449635]
[1755178396028,0.6927585,118610.0,118600.0,1.14449635]
[1755178396322,0.6927585,118610.0,118600.0,1.22878195]
[1755178396527,0.60848,118610.0,118600.0,1.22878195]
[1755178396723,0.045,118610.0,118600.0,1.44851195]
[1755178397028,0.7770169,118630.0,118620.0,0.0842714]
[1755178397228,0.7770169,118630.0,118620.0,1.1509914]
[1755178397827,0.3319588,118610.0,118600.0,0.08075224]
[1755178398032,1.09370398,118610.0,118600.0,1.14707224]
[1755178398330,1.45450398,118610.0,118600.0,1.14707224]
[1755178398518,0.96928,118610.0,118600.0,1.14707224]
[1755178398828,0.6927537,118610.0,118600.0,1.23250868]
[1755178399034,0.6927537,118610.0,118600.0,1.08564868]
[1755178399228,0.60848,118610.0,118600.0,1.08564868]
[1755178399431,0.045,118610.0,118600.0,1.38965998]
[1755178399732,0.045,118610.0,118600.0,1.42611998]
[1755178400033,0.4058,118610.0,118600.0,1.38665998]
[1755178400426,0.045,118610.0,118600.0,1.38665998]
[1755178400626,0.4058,118620.0,118610.0,0.3040047]
[1755178400929,0.1968547,118610.0,118600.0,0.16402984]
[1755178401120,1.10192094,118610.0,118600.0,1.16596628]
[1755178401428,0.60848,118610.0,118600.0,1.37924984]
[1755178401829,0.4058,118610.0,118600.0,1.39169628]
[1755178402028,0.4058,118620.0,118610.0,0.2311344]
[1755178402330,0.60848,118620.0,118610.0,0.0842744]
[1755178402533,0.045,118620.0,118610.0,0.6648044]
[1755178402727,0.56348,118640.0,118630.0,0.0842604]
[1755178402927,0.56348,118640.0,118630.0,1.2905604]
[1755178403230,0.9571223,118650.0,118640.0,0.0842533]
[1755178403231,0.55956106,118650.0,118640.0,0.0842533]
[1755178403533,0.24768,118630.0,118620.0,0.3996528]
[1755178403741,1.1372298,118650.0,118630.0,0.4725069]
[1755178404043,0.0482,118620.0,118610.0,0.3204025]
[1755178404229,0.18266,118620.0,118610.0,0.3154025]
[1755178404528,0.2669281,118620.0,118610.0,1.4452925]
[1755178404732,1.10908434,118620.0,118610.0,1.05736]
[1755178404927,0.1324823,118600.0,118590.0,0.2904669]
[1755178405126,0.74829854,118600.0,118590.0,1.2744969]
[1755178405333,1.10909854,118600.0,118590.0,1.05656]
[1755178405636,1.10909854,118600.0,118590.0,1.1408495]
[1755178405836,1.10909854,118600.0,118590.0,1.05656]
[1755178406428,0.0482,118600.0,118590.0,1.2133795]
[1755178406736,0.4932769,118610.0,118600.0,0.5432905]
[1755178406937,0.409,118610.0,118600.0,0.5440905]
[1755178407123,0.4932753,118610.0,118600.0,0.2904624]
[1755178407328,0.6999253,118610.0,118600.0,0.2179324]
[1755178407526,0.2669424,118600.0,118590.0,1.2744995]
[1755178407742,0.6999324,118600.0,118590.0,1.2754995]
[1755178407933,0.3391324,118600.0,118590.0,1.2754995]
[1755178408240,1.10909864,118600.0,118590.0,1.05756]
[1755178408543,0.3391395,118590.0,118580.0,1.05142]
[1755178408735,1.10990574,118590.0,118580.0,1.05142]
[1755178409035,1.27856174,118590.0,118580.0,1.05114]
[1755178409336,1.27856174,118590.0,118580.0,0.0001]
[1755178409531,0.2909608,118560.0,118550.0,0.19407356]
[1755178409736,1.10756997,118560.0,118550.0,1.1232439]
[1755178410140,0.0482,118560.0,118550.0,1.4947579]
[1755178410435,0.1324966,118580.0,118570.0,0.20618]
[1755178410740,0.1324966,118580.0,118570.0,1.2547]
[1755178411036,0.2669566,118580.0,118570.0,1.2541]
[1755178411336,0.6999466,118580.0,118570.0,0.13365]
[1755178411535,0.0843108,118560.0,118550.0,0.20818]
[1755178411742,0.2669708,118560.0,118550.0,1.2549]
[1755178411937,0.6277708,118560.0,118550.0,1.2549]
[1755178412130,0.6999608,118560.0,118550.0,0.13565]
[1755178412335,0.6999608,118560.0,118550.0,0.001]
[1755178412839,0.6999608,118560.0,118550.0,1.045]
[1755178413340,0.6999608,118560.0,118550.0,1.17865]
[1755178413531,0.6999608,118560.0,118550.0,1.18065]
[1755178413842,1.10912704,118560.0,118550.0,1.047]
[1755178414046,1.17809388,118560.0,118550.0,1.049]
[1755178414339,1.17809388,118560.0,118550.0,1.048]
[1755178414841,1.34758988,118560.0,118550.0,0.003]
[1755178415033,0.0843318,118530.0,118520.0,0.0843376]
[1755178415349,0.4451261,118540.0,118530.0,0.07253]
[1755178415643,0.0843214,118550.0,118540.0,0.3299647]
[1755178415943,0.7481841,118570.0,118550.0,0.4985885]
[1755178416146,0.7481841,118570.0,118560.0,1.2481]
[1755178416147,0.6619241,118570.0,118560.0,1.2481]
[1755178416536,0.4933068,118570.0,118560.0,1.3324105]
[1755178416844,0.252903,118580.0,118570.0,0.3299434]
[1755178417139,0.0843105,118560.0,118550.0,0.5571033]
[1755178417346,0.67613674,118560.0,118550.0,0.20618]
[1755178417533,0.67613674,118560.0,118550.0,1.04012]
[1755178417534,1.10912674,118560.0,118550.0,1.04012]
[1755178417946,0.1325247,118540.0,118530.0,0.6907718]
[1755178418142,0.1325247,118540.0,118530.0,1.6916718]
[1755178418749,0.2529413,118560.0,118540.0,0.168645]
[1755178419042,0.3372589,118560.0,118550.0,1.03856]
[1755178419249,0.11567,118570.0,118560.0,0.03946]
[1755178419434,0.06747,118570.0,118560.0,0.6915505]
[1755178419635,0.06747,118570.0,118560.0,1.10071674]
[1755178419936,0.1028734,118590.0,118580.0,0.2809263]
[1755178420139,0.1028734,118590.0,118580.0,1.6789663]
[1755178420540,0.1028734,118590.0,118580.0,1.59467]
[1755178420731,0.1510734,118590.0,118580.0,1.59467]
[1755178420937,0.1510734,118590.0,118580.0,0.15637]
[1755178421138,0.6463334,118590.0,118580.0,1.19289]
[1755178421334,0.6463334,118590.0,118560.0,0.19683]
[1755178421335,0.0843033,118570.0,118560.0,0.19683]
[1755178421539,0.0843033,118570.0,118560.0,1.23259]
[1755178421745,0.1325033,118570.0,118560.0,0.19683]
[1755178422050,1.10911954,118570.0,118560.0,1.03608]
[1755178422449,1.10991954,118570.0,118560.0,0.001]
[1755178422740,0.3391605,118560.0,118550.0,1.03488]
[1755178422936,1.10912674,118560.0,118550.0,1.03488]
[1755178423141,0.0843173,118550.0,118540.0,0.15637]
[1755178423342,1.10913354,118550.0,118540.0,1.11748]
[1755178423650,0.1325173,118550.0,118540.0,1.19001]
[1755178423944,0.0843173,118550.0,118540.0,1.22947]
[1755178424248,0.0843244,118540.0,118530.0,0.01684395]
[1755178424434,0.0843244,118540.0,118530.0,1.20545395]
[1755178424641,0.2529639,118550.0,118540.0,0.15637]
[1755178424840,0.0843173,118550.0,118540.0,0.6014944]
[1755178425050,0.3011429,118560.0,118550.0,0.0843173]
[1755178425247,0.1686267,118560.0,118550.0,1.2307473]
[1755178425455,0.3011092,118580.0,118560.0,0.281407]
[1755178425754,0.084303,118580.0,118570.0,1.3135731]
[1755178425940,0.084303,118580.0,118570.0,1.6743731]
[1755178426136,0.084303,118580.0,118570.0,1.22927]
[1755178426338,0.0843101,118560.0,118550.0,0.2801465]
[1755178426550,0.0843101,118560.0,118550.0,0.19583]
[1755178426747,0.1325101,118560.0,118550.0,1.22967]
[1755178427145,0.1325101,118560.0,118550.0,1.3139873]
[1755178427442,0.1325101,118560.0,118550.0,1.22967]
[1755178427643,0.1325101,118560.0,118550.0,0.15637]
[1755178427844,0.67613634,118560.0,118550.0,1.11596]
[1755178428056,0.2669701,118560.0,118550.0,1.11596]
[1755178428749,0.2669701,118560.0,118540.0,0.5314447]
[1755178428750,0.0843172,118550.0,118540.0,0.002]
[1755178428943,0.97547344,118550.0,118540.0,0.002]
[1755178429141,1.17604616,118550.0,118540.0,0.002]
[1755178429946,1.34475816,118550.0,118540.0,0.002]
[1755178430147,1.34475816,118550.0,118510.0,0.18735972]
[1755178430148,0.3399886,118520.0,118500.0,0.53700269]
[1755178430355,0.89111219,118520.0,118510.0,0.07536972]
[1755178430542,0.56570194,118510.0,118500.0,1.12272269]
[1755178430850,0.56570194,118510.0,118500.0,0.09236269]
[1755178430851,0.97470194,118510.0,118500.0,0.09236269]
[1755178431040,0.97550194,118510.0,118500.0,0.01699297]
[1755178431239,0.97550194,118510.0,118500.0,7e-08]
[1755178431456,1.14426994,118510.0,118500.0,7e-08]
[1755178431647,0.98227759,118510.0,118500.0,7e-08]
[1755178431948,1.15104559,118510.0,118500.0,7e-08]
[1755178432355,1.28550559,118510.0,118500.0,7e-08]
[1755178433550,1.34456559,118510.0,118500.0,7e-08]
[1755178433750,1.34456559,118510.0,118480.0,1.10492972]
[1755178433751,0.3392099,118490.0,118480.0,1.10492972]
[1755178433944,0.1325599,118490.0,118480.0,1.27012972]
[1755178434149,0.0843599,118490.0,118480.0,1.30958972]
[1755178434555,0.0843599,118490.0,118480.0,1.39395692]
[1755178434757,0.0843599,118490.0,118480.0,1.3185872]
[1755178434953,0.68029614,118490.0,118480.0,0.09328]
[1755178435154,0.3444799,118490.0,118480.0,1.11808]
[1755178435457,0.1294999,118490.0,118480.0,1.37977544]
[1755178435653,0.4902999,118490.0,118480.0,1.29540824]
[1755178435863,0.6319299,118490.0,118480.0,1.19]
[1755178436058,1.04109614,118490.0,118480.0,1.19]
[1755178436260,1.11444614,118490.0,118480.0,1.11808]
[1755178437061,1.11444614,118490.0,118480.0,1.0248]
[1755178437358,0.6319299,118490.0,118480.0,1.37977544]
[1755178437659,0.1294999,118490.0,118480.0,1.37977544]
[1755178437859,0.1294999,118490.0,118480.0,1.3138272]
[1755178438253,0.4902999,118490.0,118480.0,1.22946]
[1755178438459,0.2711365,118480.0,118470.0,0.19801824]
[1755178438761,0.68030274,118480.0,118470.0,1.30215184]
[1755178439056,0.2711365,118480.0,118470.0,1.2686636]
[1755178439259,0.2711365,118480.0,118470.0,0.10581059]
[1755178439260,1.36763334,118480.0,118470.0,0.10581059]
[1755178439467,1.36763334,118480.0,118460.0,0.15144414]
[1755178439468,0.1295136,118470.0,118460.0,0.15144414]
[1755178439660,1.11445984,118470.0,118460.0,0.15144414]
[1755178439961,0.1295279,118450.0,118440.0,1.2003977]
[1755178440159,0.1295279,118450.0,118440.0,1.2847927]
[1755178440459,0.55712339,118500.0,118480.0,0.2488965]
[1755178440460,0.2530987,118490.0,118480.0,0.2488965]
[1755178440762,0.06751,118500.0,118490.0,0.2883494]
[1755178440954,0.06751,118500.0,118490.0,1.05831564]
[1755178441259,0.1518624,118500.0,118490.0,0.6491494]
[1755178441449,0.1518624,118500.0,118470.0,1.58223]
[1755178441450,0.0843666,118480.0,118470.0,1.58223]
[1755178441762,0.1295066,118480.0,118470.0,1.58147]
[1755178441949,0.0843737,118470.0,118460.0,0.3608]
[1755178442260,0.1687534,118470.0,118460.0,1.6660909]
[1755178442451,0.2531118,118480.0,118470.0,0.1238337]
[1755178442653,0.0843666,118480.0,118470.0,0.56479]
[1755178442955,0.0843737,118470.0,118460.0,1.3502076]
[1755178443156,0.2531125,118480.0,118470.0,0.2883637]
[1755178443362,0.2813643,118500.0,118490.0,0.0843594]
[1755178443557,0.06751,118500.0,118490.0,2.0272694]
[1755178444057,0.07792645,118510.0,118500.0,0.2208323]
[1755178444253,0.07792645,118510.0,118500.0,0.99159854]
[1755178444459,0.2981261,118540.0,118530.0,0.145971]
[1755178444658,0.2981261,118540.0,118530.0,1.161811]
[1755178444858,0.2981261,118540.0,118530.0,1.07748]
[1755178445061,0.5131061,118540.0,118530.0,1.01584]
[1755178445357,1.28307234,118540.0,118530.0,1.01584]
[1755178445558,0.0843382,118520.0,118510.0,0.42244]
[1755178445760,0.4902782,118520.0,118510.0,0.06164]
[1755178445972,0.65470231,118520.0,118510.0,1.0754]
[1755178446261,0.29390231,118520.0,118510.0,1.37456]
[1755178446465,0.29390231,118520.0,118510.0,1.4362]
[1755178446466,0.0843382,118520.0,118510.0,1.4362]
[1755178446766,0.10712182,118520.0,118510.0,1.4362]
[1755178446964,0.51306182,118520.0,118510.0,1.0754]
[1755178447156,1.13720806,118520.0,118510.0,1.01376]
[1755178447666,1.13720806,118520.0,118510.0,1.01476]
[1755178447964,0.72804182,118520.0,118510.0,1.01476]
[1755178448463,0.65469182,118520.0,118510.0,1.01476]
[1755178448861,0.65469182,118520.0,118510.0,1.0764]
[1755178449464,1.11442444,118520.0,118510.0,0.001]
[1755178449668,1.30672609,118520.0,118510.0,1e-07]
[1755178449857,1.30672609,118520.0,118510.0,0.0010001]
[1755178450058,1.37572985,118520.0,118510.0,0.0010001]
[1755178450257,0.96656361,118520.0,118510.0,0.0010001]
[1755178450566,0.0843739,118470.0,118460.0,0.54739789]
[1755178450766,0.0843739,118470.0,118460.0,1.38696109]
[1755178451065,0.1295139,118470.0,118460.0,0.37764109]
[1755178451269,0.89948014,118470.0,118460.0,1.08576109]
[1755178451467,1.11446014,118470.0,118460.0,0.01684109]
[1755178451863,0.0843886,118450.0,118440.0,1.0853477]
[1755178452062,0.0843886,118450.0,118430.0,2.66686]
[1755178452063,0.0843957,118440.0,118430.0,0.0001]
[1755178452269,1.11448194,118440.0,118430.0,0.0001]
[1755178452660,0.75368194,118440.0,118430.0,0.0001]
[1755178452969,0.7053157,118440.0,118430.0,0.0001]
[1755178453469,0.3445157,118440.0,118430.0,0.0001]
[1755178453670,0.1295357,118440.0,118430.0,0.06174]
[1755178453876,0.7053157,118440.0,118430.0,0.0051]
[1755178454065,1.11448194,118440.0,118430.0,0.0051]
[1755178454462,1.11448194,118440.0,118430.0,0.0081]
[1755178454863,1.11528194,118440.0,118430.0,1e-07]
[1755178455070,0.0844249,118400.0,118390.0,1.674712]
[1755178455271,0.0844249,118400.0,118390.0,2.681272]
[1755178455575,0.0844249,118400.0,118390.0,4.09584]
[1755178455772,0.129572,118390.0,118380.0,0.37814462]
[1755178455969,0.129572,118390.0,118380.0,1.44574462]
[1755178456174,0.129572,118390.0,118380.0,1.08494462]
[1755178456871,0.6160873,118400.0,118380.0,1.53018372]
[1755178457173,0.0844323,118390.0,118380.0,0.47257992]
[1755178457372,0.2712023,118390.0,118380.0,1.03170462]
[1755178457675,0.1295723,118390.0,118380.0,1.18078402]
[1755178457870,0.0844323,118390.0,118380.0,0.47557982]
[1755178458076,0.3445523,118390.0,118380.0,1.11886402]
[1755178458374,1.11451854,118390.0,118380.0,1.03442462]
[1755178458570,0.26012,118390.0,118380.0,1.47966402]
[1755178458779,0.2984289,118400.0,118390.0,0.1460723]
[1755178459075,0.2984289,118400.0,118380.0,1.17349982]
[1755178459076,0.2712023,118390.0,118380.0,1.17349982]
[1755178459280,0.3445523,118390.0,118380.0,1.11185982]
[1755178459571,0.7053523,118390.0,118380.0,1.11185982]
[1755178459772,0.04514,118390.0,118380.0,1.53429982]
[1755178459972,0.1295722,118390.0,118380.0,1.53129982]
[1755178460169,0.4903722,118390.0,118380.0,1.10885982]
[1755178460365,0.68036844,118390.0,118380.0,1.10585982]
[1755178460566,0.1295722,118390.0,118380.0,1.16749982]
[1755178460876,0.04514,118390.0,118380.0,1.53129982]
[1755178461076,0.3608,118410.0,118390.0,0.1460723]
[1755178461276,0.85438174,118420.0,118410.0,0.146058]
[1755178461277,0.04514,118420.0,118410.0,0.146058]
[1755178461572,0.01907699,118430.0,118420.0,0.1478509]
[1755178461766,0.01807699,118430.0,118420.0,1.92265714]
[1755178461970,0.04514,118450.0,118440.0,0.0843966]
[1755178462269,0.01884914,118460.0,118450.0,0.1279495]
[1755178462473,0.10323154,118460.0,118450.0,0.4877495]
[1755178462672,0.01884914,118460.0,118450.0,0.4877495]
[1755178463178,0.01884914,118460.0,118450.0,0.89771574]
[1755178463366,0.5746714,118490.0,118480.0,0.02471]
[1755178463566,0.3825748,118500.0,118490.0,0.084361]
[1755178463772,0.298214,118500.0,118490.0,0.109071]
[1755178464069,0.1330681,118480.0,118470.0,0.109081]
[1755178464275,0.2640881,118480.0,118470.0,1.1146853]
[1755178464466,0.2640881,118480.0,118470.0,1.0899753]
[1755178464668,0.0843753,118470.0,118460.0,0.38551]
[1755178464869,0.67326154,118470.0,118460.0,1.00472]
[1755178465068,0.74310154,118470.0,118460.0,1.00472]
[1755178465274,0.3339353,118470.0,118460.0,1.0891026]
[1755178465476,0.3339353,118470.0,118450.0,1.52824]
[1755178465477,0.0843826,118460.0,118450.0,1.52824]
[1755178465671,0.2641026,118460.0,118450.0,2.53232]
[1755178465876,0.3339426,118460.0,118450.0,2.17152]
[1755178466083,0.74310884,118460.0,118450.0,1.00408]
[1755178466378,0.1330826,118460.0,118450.0,1.1131797]
[1755178466584,0.1330826,118460.0,118450.0,1.4739797]
[1755178466877,0.1330826,118460.0,118450.0,1.4492697]
[1755178466878,0.2651026,118460.0,118450.0,1.4492697]
[1755178467179,0.004,118460.0,118450.0,2.05278594]
[1755178467387,0.0843755,118470.0,118460.0,0.2738465]
[1755178467584,0.0843755,118470.0,118460.0,1.6378065]
[1755178467783,0.0843755,118470.0,118460.0,0.38151]
[1755178468083,0.67326174,118470.0,118460.0,1.00212]
[1755178468278,0.67326174,118470.0,118460.0,1.0865026]
[1755178468481,0.1330755,118470.0,118460.0,1.4680126]
[1755178468883,0.3121994,118480.0,118470.0,0.02071]
[1755178469074,0.1330753,118470.0,118460.0,0.38151]
[1755178469273,0.1340753,118470.0,118460.0,0.38151]
[1755178469683,0.1340753,118470.0,118460.0,0.3638]
[1755178469874,0.1340753,118470.0,118460.0,0.4688924]
[1755178470071,0.0487,118470.0,118460.0,0.4688924]
[1755178470275,0.10778,118480.0,118470.0,0.1050853]
[1755178470591,0.1921482,118480.0,118470.0,1.4650453]
[1755178470776,0.10778,118480.0,118470.0,1.4650453]
[1755178470978,0.05908,118480.0,118470.0,1.4650453]
[1755178471282,0.1434482,118480.0,118470.0,1.38067]
[1755178471582,0.3231682,118480.0,118470.0,0.99916]
[1755178471786,1.16297444,118480.0,118470.0,0.99916]
[1755178471978,0.7538082,118480.0,118470.0,0.99916]
[1755178472374,0.3339354,118470.0,118460.0,1.0]
[1755178472573,1.10470164,118470.0,118460.0,0.002]
[1755178472783,0.1331039,118430.0,118420.0,0.3608]
[1755178473083,0.1331039,118430.0,118400.0,0.3988725]
[1755178473084,0.1331181,118410.0,118400.0,0.3988725]
[1755178473290,0.67330434,118410.0,118400.0,0.0173625]
[1755178473588,0.3339781,118410.0,118400.0,0.1017878]
[1755178473881,0.3339781,118410.0,118400.0,0.2706339]
[1755178473882,0.0844184,118410.0,118400.0,0.2706339]
[1755178474084,0.1331184,118410.0,118400.0,0.0173625]
[1755178474279,0.1331184,118410.0,118400.0,0.0390725]
[1755178474881,1.10394464,118410.0,118400.0,0.0183625]
[1755178475080,1.10394464,118410.0,118400.0,0.001]
[1755178475280,1.10394464,118410.0,118400.0,0.003]
[1755178475784,0.6947784,118410.0,118400.0,0.003]
[1755178476381,1.10394464,118410.0,118400.0,0.003]
[1755178476985,0.3339784,118410.0,118400.0,0.003]
[1755178477183,0.1331184,118410.0,118400.0,0.02371]
[1755178477390,0.2641384,118410.0,118400.0,0.02371]
[1755178477579,1.10394464,118410.0,118400.0,0.003]
[1755178478582,0.6947784,118410.0,118400.0,0.003]
[1755178478787,1.10394464,118410.0,118400.0,0.003]
[1755178479390,0.0487,118410.0,118400.0,0.1081353]
[1755178479686,0.74314444,118410.0,118400.0,0.003]
[1755178479880,0.74314444,118410.0,118400.0,1.0845453]
[1755178480282,0.0487,118410.0,118400.0,1.1052553]
[1755178480483,0.779172,118430.0,118420.0,0.084411]
[1755178480688,0.0487,118430.0,118420.0,1.102201]
[1755178481088,0.06772332,118440.0,118430.0,0.1051138]
[1755178481289,0.01902332,118440.0,118430.0,0.4667138]
[1755178482384,0.72979573,118470.0,118450.0,0.0860795]
[1755178482587,0.32062949,118470.0,118460.0,0.99873]
[1755178482792,0.3339424,118460.0,118450.0,0.997]
[1755178482992,1.10390864,118460.0,118450.0,0.997]
[1755178483294,0.1330968,118440.0,118430.0,0.36549]
[1755178483486,0.74312304,118440.0,118430.0,1.00296]
[1755178483991,0.6947568,118440.0,118430.0,1.0843639]
[1755178484196,0.1330968,118440.0,118430.0,1.4468539]
[1755178484398,0.1330968,118440.0,118430.0,1.0860539]
[1755178484892,0.7470768,118450.0,118440.0,0.0860868]
[1755178485093,0.8780968,118450.0,118440.0,0.084397]
[1755178485295,0.2174846,118450.0,118440.0,0.445197]
[1755178485501,0.6626603,118460.0,118450.0,0.0860799]